fUSD/lending_fUSD_20240514
["ID","MTS","AMOUNT","RATE_DAILY","PERIOD"]
[326994766,1715692256633,-921.17486,0.00012989,2]
[326994767,1715692256644,-816.25,0.00012989,2]
[326994768,1715692256655,-921.17486,0.00012989,2]
[326994769,1715692256664,-151.0,0.00012989,2]
[326994770,1715692256674,-151.0,0.00012989,2]
[326994771,1715692256683,-1387.42,0.00012989,2]
[326994772,1715692256693,-1387.42,0.00012989,2]
[326994773,1715692256702,-151.0,0.00012989,2]
[326994774,1715692256712,-151.0,0.00012989,2]
[326994775,1715692256723,-151.0,0.00012989,2]
[326994776,1715692256736,-151.0,0.00012989,2]
[326994777,1715692256746,-151.0,0.00012989,2]
[326994778,1715692256755,-151.0,0.00012989,2]
[326994779,1715692256766,-151.0,0.00012989,2]
[326994780,1715692256776,-151.0,0.00012989,2]
[326994781,1715692256786,-202.293002,0.00012989,2]
[326994782,1715692256795,-151.0,0.00012989,2]
[326994783,1715692256807,-202.293002,0.00012989,2]
[326994784,1715692256816,-151.0,0.00012989,2]
[326994785,1715692256826,-151.0,0.00012989,2]
[326994786,1715692256836,-151.0,0.00012989,2]
[326994787,1715692256846,-287.368274,0.00012989,2]
[326994788,1715692256855,-287.368274,0.00012989,2]
[326994789,1715692256866,-946.11,0.00012989,2]
[326994790,1715692256877,-946.11,0.00012989,2]
[326994791,1715692256887,-152.31903373,0.00012992,2]
[326994792,1715692256897,-151.0,0.00012995,2]
[326994793,1715692256906,-500.0,0.00012996,2]
[326994794,1715692256916,-500.0,0.00012996,2]
[326994795,1715692256926,-1258.4,0.00012996,2]
[326994796,1715692256936,-500.0,0.00012996,2]
[326994797,1715692256945,-500.0,0.00012996,2]
[326994798,1715692256955,-500.0,0.00012996,2]
[326994799,1715692256965,-500.0,0.00012996,2]
[326994800,1715692256974,-500.0,0.00012996,2]
[326994801,1715692256984,-500.0,0.00012996,2]
[326994802,1715692256994,-500.0,0.00012996,2]
[326994803,1715692257003,-500.0,0.00012996,2]
[326994804,1715692257013,-500.0,0.00012996,2]
[326994805,1715692257023,-530.97,0.00012996,2]
[326994806,1715692257032,-500.0,0.00012996,2]
[326994807,1715692257042,-500.0,0.00012996,2]
[326994808,1715692257051,-500.0,0.00012996,2]
[326994809,1715692257061,-770.83,0.00012996,2]
[326994810,1715692257071,-593.55,0.00012996,2]
[326994811,1715692257080,-391.3,0.00012996,2]
[326994812,1715692257090,-273.64,0.00012996,2]
[326994813,1715692257100,-395.75,0.00012996,2]
[326994814,1715692257110,-545.3,0.00012996,2]
[326994815,1715692257119,-500.0,0.00012996,2]
[326994816,1715692257131,-397.6,0.00012996,2]
[326994817,1715692257140,-500.0,0.00012996,2]
[326994818,1715692257149,-660.48,0.00012996,2]
[326994819,1715692257158,-500.0,0.00012996,2]
[326994820,1715692257168,-500.0,0.00012996,2]
[326994821,1715692257177,-500.0,0.00012996,2]
[326994822,1715692257187,-150.0,0.00012996,2]
[326994823,1715692257196,-822.56,0.00012996,2]
[326994824,1715692257205,-500.0,0.00012996,2]
[326994825,1715692257215,-500.0,0.00012996,2]
[326994826,1715692257224,-272.7,0.00012996,2]
[326994827,1715692257234,-500.0,0.00012996,2]
[326994828,1715692257244,-769.83,0.00012996,2]
[326994829,1715692257253,-864.11,0.00012996,2]
[326994830,1715692257263,-500.0,0.00012996,2]
[326994831,1715692257272,-169.959184,0.00012996,2]
[326994832,1715692257282,-169.959184,0.00012996,2]
[326994833,1715692257291,-500.0,0.00012996,2]
[326994834,1715692257301,-167.456985,0.00012996,2]
[326994835,1715692257311,-211.393526,0.00012996,2]
[326994836,1715692257320,-211.393526,0.00012996,2]
[326994837,1715692257329,-500.0,0.00012996,2]
[326994838,1715692257339,-1167.12,0.00012996,2]
[326994839,1715692257348,-913.72,0.00012996,2]
[326994840,1715692257358,-1275.34,0.00012996,2]
[326994841,1715692257368,-1080.65,0.00012996,2]
[326994842,1715692257379,-500.0,0.00012996,2]
[326994843,1715692257389,-500.0,0.00012996,2]
[326994844,1715692257398,-783.92,0.00012996,2]
[326994845,1715692257408,-4444.18,0.00012996,2]
[326994846,1715692257419,-368.55,0.00012996,2]
[326994847,1715692257428,-500.0,0.00012996,2]
[326994848,1715692257439,-367.77,0.00012996,2]
[326994849,1715692257448,-487.78,0.00012996,2]
[326994850,1715692257458,-652.3,0.00012996,2]
[326994851,1715692257468,-989.33,0.00012996,2]
[326994852,1715692257479,-500.0,0.00012996,2]
[326994853,1715692257488,-231.15489486,0.00012996,2]
[326994854,1715692257497,-501.18,0.00012996,2]
[326994855,1715692257507,-942.72,0.00012996,2]
[326994856,1715692257517,-500.0,0.00012996,2]
[326994857,1715692257528,-500.0,0.00012996,2]
[326994858,1715692257539,-1912.13,0.00012996,2]
[326994859,1715692257548,-500.0,0.00012996,2]
[326994860,1715692257558,-1352.38,0.00012996,2]
[326994861,1715692257568,-500.0,0.00012996,2]
[326994862,1715692257581,-500.0,0.00012996,2]
[326994863,1715692257592,-500.0,0.00012996,2]
[326994864,1715692257602,-692.37,0.00012996,2]
[326994865,1715692257612,-500.0,0.00012996,2]
[326994866,1715692257623,-342.43,0.00012996,2]
[326994867,1715692257635,-585.95,0.00012996,2]
[326994868,1715692257644,-500.0,0.00012996,2]
[326994869,1715692257654,-1065.19,0.00012996,2]
[326994870,1715692257664,-500.0,0.00012996,2]
[326994871,1715692257674,-500.0,0.00012996,2]
[326994872,1715692257684,-500.0,0.00012996,2]
[326994873,1715692257694,-500.0,0.00012996,2]
[326994874,1715692257704,-500.0,0.00012996,2]
[326994875,1715692257713,-500.0,0.00012996,2]
[326994876,1715692257728,-181.35,0.00012996,2]
[326994877,1715692257738,-500.0,0.00012996,2]
[326994878,1715692257748,-573.17,0.00012996,2]
[326994879,1715692257759,-500.0,0.00012996,2]
[326994880,1715692257769,-766.41,0.00012996,2]
[326994881,1715692257779,-411.32892189,0.00012996,2]
[326994882,1715692257790,-500.0,0.00012996,2]
[326994883,1715692257802,-347.1,0.00012996,2]
[326994884,1715692257812,-500.0,0.00012996,2]
[326994885,1715692257823,-500.0,0.00012996,2]
[326994886,1715692257833,-854.18,0.00012996,2]
[326994887,1715692257844,-155.0,0.00012997,2]
[326994888,1715692257855,-155.0,0.00012997,2]
[326994889,1715692257864,-160.0,0.00012997,2]
[326994890,1715692257874,-231.06136771,0.00012997,2]
[326994891,1715692257887,-218.28084152,0.00012997,2]
[326994892,1715692257985,-1478.13,0.00012997,2]
[326994893,1715692257994,-644.71,0.00012997,2]
[326994894,1715692258004,-500.0,0.00012997,2]
[326994895,1715692258014,-500.0,0.00012997,2]
[326994896,1715692258023,-1258.4,0.00012997,2]
[326994897,1715692258032,-500.0,0.00012997,2]
[326994898,1715692258042,-500.0,0.00012997,2]
[326994899,1715692258052,-500.0,0.00012997,2]
[326994900,1715692258061,-500.0,0.00012997,2]
[326994901,1715692258071,-500.0,0.00012997,2]
[326994902,1715692258080,-500.0,0.00012997,2]
[326994903,1715692258090,-500.0,0.00012997,2]
[326994904,1715692258099,-269.68,0.00012997,2]
[326994905,1715692258109,-500.0,0.00012997,2]
[326994906,1715692258118,-500.0,0.00012997,2]
[326994907,1715692258129,-770.83,0.00012997,2]
[326994908,1715692258139,-500.0,0.00012997,2]
[326994909,1715692258149,-470.94,0.00012997,2]
[326994910,1715692258158,-660.48,0.00012997,2]
[326994911,1715692258167,-547.36,0.00012997,2]
[326994912,1715692258177,-500.0,0.00012997,2]
[326994913,1715692258186,-1557.62,0.00012997,2]
[326994914,1715692258195,-500.0,0.00012997,2]
[326994915,1715692258205,-151.0,0.00012997,2]
[326994916,1715692258214,-500.0,0.00012997,2]
[326994917,1715692258223,-1896.63,0.00012997,2]
[326994918,1715692258232,-150.0,0.00012997,2]
[326994919,1715692258242,-822.56,0.00012997,2]
[326994920,1715692258251,-500.0,0.00012997,2]
[326994921,1715692258260,-642.87,0.00012997,2]
[326994922,1715692258269,-500.0,0.00012997,2]
[326994923,1715692258278,-769.83,0.00012997,2]
[326994924,1715692258287,-151.0,0.00012997,2]
[326994925,1715692258297,-864.11,0.00012997,2]
[326994926,1715692258306,-500.0,0.00012997,2]
[326994927,1715692258315,-500.0,0.00012997,2]
[326994928,1715692258324,-1605.0,0.00012997,2]
[326994929,1715692258333,-500.0,0.00012997,2]
[326994930,1715692258342,-500.0,0.00012997,2]
[326994931,1715692258351,-1167.12,0.00012997,2]
[326994932,1715692258360,-913.72,0.00012997,2]
[326994933,1715692258369,-816.25,0.00012997,2]
[326994934,1715692258380,-1275.34,0.00012997,2]
[326994935,1715692258389,-1080.65,0.00012997,2]
[326994936,1715692258398,-500.0,0.00012997,2]
[326994937,1715692258407,-500.0,0.00012997,2]
[326994938,1715692258416,-783.92,0.00012997,2]
[326994939,1715692258425,-1387.42,0.00012997,2]
[326994940,1715692258435,-4444.18,0.00012997,2]
[326994941,1715692258444,-500.0,0.00012997,2]
[326994942,1715692258454,-652.3,0.00012997,2]
[326994943,1715692258464,-989.33,0.00012997,2]
[326994944,1715692258474,-500.0,0.00012997,2]
[326994945,1715692258483,-826.27,0.00012997,2]
[326994946,1715692258493,-942.72,0.00012997,2]
[326994947,1715692258502,-826.27,0.00012997,2]
[326994948,1715692258512,-500.0,0.00012997,2]
[326994949,1715692258521,-500.0,0.00012997,2]
[326994950,1715692258531,-1912.13,0.00012997,2]
[326994951,1715692258540,-510.95,0.00012997,2]
[326994952,1715692258549,-500.0,0.00012997,2]
[326994953,1715692258559,-1352.38,0.00012997,2]
[326994954,1715692258569,-639.22,0.00012997,2]
[326994955,1715692258578,-413.31,0.00012997,2]
[326994956,1715692258587,-500.0,0.00012997,2]
[326994957,1715692258597,-500.0,0.00012997,2]
[326994958,1715692258606,-500.0,0.00012997,2]
[326994959,1715692258616,-500.0,0.00012997,2]
[326994960,1715692258625,-692.37,0.00012997,2]
[326994961,1715692258637,-500.0,0.00012997,2]
[326994962,1715692258647,-357.87,0.00012997,2]
[326994963,1715692258656,-500.0,0.00012997,2]
[326994964,1715692258666,-500.0,0.00012997,2]
[326994965,1715692258675,-500.0,0.00012997,2]
[326994966,1715692258685,-627.97,0.00012997,2]
[326994967,1715692258695,-500.0,0.00012997,2]
[326994968,1715692258705,-500.0,0.00012997,2]
[326994969,1715692258717,-500.0,0.00012997,2]
[326994970,1715692258731,-1065.19,0.00012997,2]
[326994971,1715692258742,-946.11,0.00012997,2]
[326994972,1715692258751,-500.0,0.00012997,2]
[326994973,1715692258761,-634.55,0.00012997,2]
[326994974,1715692258770,-500.0,0.00012997,2]
[326994975,1715692258782,-500.0,0.00012997,2]
[326994976,1715692258792,-500.0,0.00012997,2]
[326994977,1715692258802,-668.06,0.00012997,2]
[326994978,1715692258811,-500.0,0.00012997,2]
[326994979,1715692258822,-261.71180313,0.00012997,2]
[326994980,1715692258831,-516.3,0.00012997,2]
[326994981,1715692258841,-500.0,0.00012997,2]
[326994982,1715692258851,-579.85,0.00012997,2]
[326994983,1715692258862,-500.0,0.00012997,2]
[326994984,1715692258871,-516.99,0.00012997,2]
[326994985,1715692258882,-948.39,0.00012997,2]
[326994986,1715692258892,-379.6,0.00012997,2]
[326994987,1715692258901,-531.07,0.00012997,2]
[326994988,1715692258911,-531.07,0.00012997,2]
[326994989,1715692258920,-758.65,0.00012997,2]
[326994990,1715692258929,-500.0,0.00012997,2]
[326994991,1715692258938,-580.31,0.00012997,2]
[326994992,1715692258947,-580.31,0.00012997,2]
[326994993,1715692258956,-620.0,0.00012997,2]
[326994994,1715692258966,-500.0,0.00012997,2]
[326994995,1715692258975,-573.17,0.00012997,2]
[326994996,1715692258985,-500.0,0.00012997,2]
[326994997,1715692258995,-766.41,0.00012997,2]
[326994998,1715692259004,-500.0,0.00012997,2]
[326994999,1715692259014,-2318.05,0.00012997,2]
[326995000,1715692259025,-500.0,0.00012997,2]
[326995001,1715692259034,-225.708701,0.00012997,2]
[326995002,1715692259043,-500.0,0.00012997,2]
[326995003,1715692259053,-826.06,0.00012997,2]
[326995004,1715692259063,-826.06,0.00012997,2]
[326995005,1715692259072,-241.246773,0.00012997,2]
[326995006,1715692259081,-500.0,0.00012997,2]
[326995007,1715692259091,-541.55,0.00012997,2]
[326995008,1715692259100,-854.18,0.00012997,2]
[326995009,1715692259109,-2000.0,0.00012998,2]
[326995010,1715692259119,-200.0,0.00012998,2]
[326995011,1715692259128,-252.37108,0.00012998,2]
[326995012,1715692259137,-252.37108,0.00012998,2]
[326995013,1715692259146,-151.0,0.00012998,2]
[326995014,1715692259155,-151.0,0.00012998,2]
[326995015,1715692259165,-151.0,0.00012998,2]
[326995016,1715692259177,-151.0,0.00012998,2]
[326995017,1715692259188,-1478.13,0.00012998,2]
[326995018,1715692259197,-1478.13,0.00012998,2]
[326995019,1715692259207,-1478.13,0.00012998,2]
[326995020,1715692259216,-1478.13,0.00012998,2]
[326995021,1715692259226,-1478.13,0.00012998,2]
[326995022,1715692259235,-1478.13,0.00012998,2]
[326995023,1715692259244,-1478.13,0.00012998,2]
[326995024,1715692259253,-1478.35680589,0.00012998,2]
[326995025,1715692259263,-644.71,0.00012998,2]
[326995026,1715692259273,-644.71,0.00012998,2]
[326995027,1715692259284,-644.71,0.00012998,2]
[326995028,1715692259293,-644.71,0.00012998,2]
[326995029,1715692259302,-644.71,0.00012998,2]
[326995030,1715692259313,-644.71,0.00012998,2]
[326995031,1715692259322,-644.71,0.00012998,2]
[326995032,1715692259331,-644.87,0.00012998,2]
[326995033,1715692259340,-2000.0,0.00012998,2]
[326995034,1715692259350,-200.0,0.00012998,2]
[326995035,1715692259359,-435.52,0.00012998,2]
[326995036,1715692259369,-151.0,0.00012998,2]
[326995037,1715692259379,-500.0,0.00012998,2]
[326995038,1715692259389,-500.0,0.00012998,2]
[326995039,1715692259400,-1258.4,0.00012998,2]
[326995040,1715692259409,-1258.4,0.00012998,2]
[326995041,1715692259420,-500.0,0.00012998,2]
[326995042,1715692259429,-257.116474,0.00012998,2]
[326995043,1715692259439,-500.0,0.00012998,2]
[326995044,1715692259449,-151.0,0.00012998,2]
[326995045,1715692259458,-151.0,0.00012998,2]
[326995046,1715692259468,-500.0,0.00012998,2]
[326995047,1715692259477,-595.46,0.00012998,2]
[326995048,1715692259487,-151.0,0.00012998,2]
[326995049,1715692259496,-500.0,0.00012998,2]
[326995050,1715692259506,-500.0,0.00012998,2]
[326995051,1715692259515,-500.0,0.00012998,2]
[326995052,1715692259524,-552.4,0.00012998,2]
[326995053,1715692259533,-500.0,0.00012998,2]
[326995054,1715692259542,-500.0,0.00012998,2]
[326995055,1715692259551,-500.0,0.00012998,2]
[326995056,1715692259562,-461.62,0.00012998,2]
[326995057,1715692259572,-500.0,0.00012998,2]
[326995058,1715692259581,-645.15,0.00012998,2]
[326995059,1715692259591,-151.0,0.00012998,2]
[326995060,1715692259600,-500.0,0.00012998,2]
[326995061,1715692259609,-500.0,0.00012998,2]
[326995062,1715692259620,-500.0,0.00012998,2]
[326995063,1715692259631,-317.16,0.00012998,2]
[326995064,1715692259640,-151.0,0.00012998,2]
[326995065,1715692259649,-770.83,0.00012998,2]
[326995066,1715692259659,-770.83,0.00012998,2]
[326995067,1715692259669,-151.0,0.00012998,2]
[326995068,1715692259679,-204.166222,0.00012998,2]
[326995069,1715692259688,-204.166222,0.00012998,2]
[326995070,1715692259697,-500.0,0.00012998,2]
[326995071,1715692259706,-500.0,0.00012998,2]
[326995072,1715692259716,-151.0,0.00012998,2]
[326995073,1715692259731,-151.0,0.00012998,2]
[326995074,1715692259740,-151.0,0.00012998,2]
[326995075,1715692259749,-660.48,0.00012998,2]
[326995076,1715692259759,-660.48,0.00012998,2]
[326995077,1715692259770,-151.0,0.00012998,2]
[326995078,1715692259779,-547.36,0.00012998,2]
[326995079,1715692259788,-547.36,0.00012998,2]
[326995080,1715692259800,-547.36,0.00012998,2]
[326995081,1715692259810,-547.36,0.00012998,2]
[326995082,1715692259819,-153.741497,0.00012998,2]
[326995083,1715692259828,-547.36,0.00012998,2]
[326995084,1715692259838,-547.36,0.00012998,2]
[326995085,1715692259847,-547.36,0.00012998,2]
[326995086,1715692259856,-547.38576444,0.00012998,2]
[326995087,1715692259866,-151.0,0.00012998,2]
[326995088,1715692259875,-151.0,0.00012998,2]
[326995089,1715692259888,-500.0,0.00012998,2]
[326995090,1715692259897,-500.0,0.00012998,2]
[326995091,1715692259908,-1557.62,0.00012998,2]
[326995092,1715692259917,-1557.62,0.00012998,2]
[326995093,1715692259926,-1557.62,0.00012998,2]
[326995094,1715692259936,-1557.62,0.00012998,2]
[326995095,1715692259945,-1557.62,0.00012998,2]
[326995096,1715692259954,-1557.62,0.00012998,2]
[326995097,1715692259963,-1557.62,0.00012998,2]
[326995098,1715692259972,-1557.78776881,0.00012998,2]
[326995099,1715692259981,-500.0,0.00012998,2]
[326995100,1715692259990,-500.0,0.00012998,2]
[326995101,1715692260000,-151.0,0.00012998,2]
[326995102,1715692260009,-151.0,0.00012998,2]
[326995103,1715692260018,-151.0,0.00012998,2]
[326995104,1715692260028,-274.626693,0.00012998,2]
[326995105,1715692260037,-151.0,0.00012998,2]
[326995106,1715692260047,-500.0,0.00012998,2]
[326995107,1715692260056,-500.0,0.00012998,2]
[326995108,1715692260066,-1896.63,0.00012998,2]
[326995109,1715692260075,-1896.63,0.00012998,2]
[326995110,1715692260083,-1896.63,0.00012998,2]
[326995111,1715692260092,-1896.63,0.00012998,2]
[326995112,1715692260101,-1896.63,0.00012998,2]
[326995113,1715692260110,-1896.63,0.00012998,2]
[326995114,1715692260119,-1896.63,0.00012998,2]
[326995115,1715692260128,-1896.74333729,0.00012998,2]
[326995116,1715692260140,-150.0,0.00012998,2]
[326995117,1715692260150,-150.0,0.00012998,2]
[326995118,1715692260159,-822.56,0.00012998,2]
[326995119,1715692260169,-822.56,0.00012998,2]
[326995120,1715692260179,-500.0,0.00012998,2]
[326995121,1715692260188,-500.0,0.00012998,2]
[326995122,1715692260198,-500.0,0.00012998,2]
[326995123,1715692260208,-500.0,0.00012998,2]
[326995124,1715692260218,-769.83,0.00012998,2]
[326995125,1715692260228,-769.83,0.00012998,2]
[326995126,1715692260237,-151.0,0.00012998,2]
[326995127,1715692260247,-864.11,0.00012998,2]
[326995128,1715692260256,-864.11,0.00012998,2]
[326995129,1715692260266,-288.38,0.00012998,2]
[326995130,1715692260275,-169.959184,0.00012998,2]
[326995131,1715692260294,-169.959184,0.00012998,2]
[326995132,1715692260306,-500.0,0.00012998,2]
[326995133,1715692260316,-500.0,0.00012998,2]
[326995134,1715692260326,-1605.0,0.00012998,2]
[326995135,1715692260336,-1605.0,0.00012998,2]
[326995136,1715692260346,-1605.0,0.00012998,2]
[326995137,1715692260356,-1605.0,0.00012998,2]
[326995138,1715692260367,-1605.0,0.00012998,2]
[326995139,1715692260377,-1605.0,0.00012998,2]
[326995140,1715692260390,-1605.0,0.00012998,2]
[326995141,1715692260400,-1605.05628327,0.00012998,2]
[326995142,1715692260410,-2000.0,0.00012998,2]
[326995143,1715692260420,-200.0,0.00012998,2]
[326995144,1715692260429,-211.393526,0.00012998,2]
[326995145,1715692260438,-211.393526,0.00012998,2]
[326995146,1715692260448,-273.7,0.00012998,2]
[326995147,1715692260458,-576.43,0.00012998,2]
[326995148,1715692260468,-1167.12,0.00012998,2]
[326995149,1715692260478,-1167.12,0.00012998,2]
[326995150,1715692260488,-913.72,0.00012998,2]
[326995151,1715692260498,-913.72,0.00012998,2]
[326995152,1715692260508,-921.17486,0.00012998,2]
[326995153,1715692260518,-816.25,0.00012998,2]
[326995154,1715692260528,-816.25,0.00012998,2]
[326995155,1715692260539,-816.25,0.00012998,2]
[326995156,1715692260549,-816.25,0.00012998,2]
[326995157,1715692260558,-816.25,0.00012998,2]
[326995158,1715692260568,-816.25,0.00012998,2]
[326995159,1715692260578,-816.25,0.00012998,2]
[326995160,1715692260588,-816.32439433,0.00012998,2]
[326995161,1715692260597,-921.17486,0.00012998,2]
[326995162,1715692260607,-1275.34,0.00012998,2]
[326995163,1715692260617,-1275.34,0.00012998,2]
[326995164,1715692260627,-198.737647,0.00012998,2]
[326995165,1715692260640,-1080.65,0.00012998,2]
[326995166,1715692260649,-1080.65,0.00012998,2]
[326995167,1715692260659,-500.0,0.00012998,2]
[326995168,1715692260669,-599.93,0.00012998,2]
[326995169,1715692260678,-151.0,0.00012998,2]
[326995170,1715692260687,-2544.95088,0.00012998,2]
[326995171,1715692260698,-500.0,0.00012998,2]
[326995172,1715692260708,-500.0,0.00012998,2]
[326995173,1715692260718,-151.0,0.00012998,2]
[326995174,1715692260728,-783.92,0.00012998,2]
[326995175,1715692260739,-783.92,0.00012998,2]
[326995176,1715692260749,-1387.42,0.00012998,2]
[326995177,1715692260759,-151.0,0.00012998,2]
[326995178,1715692260769,-1387.42,0.00012998,2]
[326995179,1715692260779,-1387.42,0.00012998,2]
[326995180,1715692260788,-1387.42,0.00012998,2]
[326995181,1715692260798,-1387.42,0.00012998,2]
[326995182,1715692260808,-1387.42,0.00012998,2]
[326995183,1715692260819,-1387.64294951,0.00012998,2]
[326995184,1715692260829,-4444.18,0.00012998,2]
[326995185,1715692260839,-4444.18,0.00012998,2]
[326995186,1715692260849,-151.0,0.00012998,2]
[326995187,1715692260859,-151.0,0.00012998,2]
[326995188,1715692260869,-151.0,0.00012998,2]
[326995189,1715692260878,-151.0,0.00012998,2]
[326995190,1715692260890,-177.976168,0.00012998,2]
[326995191,1715692260901,-500.0,0.00012998,2]
[326995192,1715692260911,-500.0,0.00012998,2]
[326995193,1715692260921,-151.0,0.00012998,2]
[326995194,1715692260931,-202.293002,0.00012998,2]
[326995195,1715692260941,-151.0,0.00012998,2]
[326995196,1715692260951,-202.293002,0.00012998,2]
[326995197,1715692260960,-151.0,0.00012998,2]
[326995198,1715692260970,-151.0,0.00012998,2]
[326995199,1715692260980,-652.3,0.00012998,2]
[326995200,1715692260990,-652.3,0.00012998,2]
[326995201,1715692260999,-652.3,0.00012998,2]
[326995202,1715692261008,-989.33,0.00012998,2]
[326995203,1715692261018,-989.33,0.00012998,2]
[326995204,1715692261028,-171.83184,0.00012998,2]
[326995205,1715692261038,-500.0,0.00012998,2]
[326995206,1715692261048,-500.0,0.00012998,2]
[326995207,1715692261057,-500.0,0.00012998,2]
[326995208,1715692261067,-287.368274,0.00012998,2]
[326995209,1715692261077,-287.368274,0.00012998,2]
[326995210,1715692261087,-942.72,0.00012998,2]
[326995211,1715692261097,-826.27,0.00012998,2]
[326995212,1715692261107,-942.72,0.00012998,2]
[326995213,1715692261116,-826.27,0.00012998,2]
[326995214,1715692261126,-942.72,0.00012998,2]
[326995215,1715692261136,-216.977903,0.00012998,2]
[326995216,1715692261146,-500.0,0.00012998,2]
[326995217,1715692261157,-500.0,0.00012998,2]
[326995218,1715692261167,-500.0,0.00012998,2]
[326995219,1715692261177,-500.0,0.00012998,2]
[326995220,1715692261187,-1912.13,0.00012998,2]
[326995221,1715692261197,-1912.13,0.00012998,2]
[326995222,1715692261207,-216.977903,0.00012998,2]
[326995223,1715692261216,-151.0,0.00012998,2]
[326995224,1715692261226,-500.0,0.00012998,2]
[326995225,1715692261235,-599.58,0.00012998,2]
[326995226,1715692261246,-1352.38,0.00012998,2]
[326995227,1715692261256,-1352.38,0.00012998,2]
[326995228,1715692261266,-500.0,0.00012998,2]
[326995229,1715692261275,-500.0,0.00012998,2]
[326995230,1715692261285,-151.0,0.00012998,2]
[326995231,1715692261295,-500.0,0.00012998,2]
[326995232,1715692261305,-500.0,0.00012998,2]
[326995233,1715692261316,-500.0,0.00012998,2]
[326995234,1715692261326,-207.086008,0.00012998,2]
[326995235,1715692261335,-551.38,0.00012998,2]
[326995236,1715692261345,-207.086008,0.00012998,2]
[326995237,1715692261355,-500.0,0.00012998,2]
[326995238,1715692261365,-500.0,0.00012998,2]
[326995239,1715692261375,-500.0,0.00012998,2]
[326995240,1715692261386,-692.37,0.00012998,2]
[326995241,1715692261396,-692.37,0.00012998,2]
[326995242,1715692261405,-692.37,0.00012998,2]
[326995243,1715692261415,-500.0,0.00012998,2]
[326995244,1715692261424,-500.0,0.00012998,2]
[326995245,1715692261434,-151.0,0.00012998,2]
[326995246,1715692261444,-500.0,0.00012998,2]
[326995247,1715692261454,-500.0,0.00012998,2]
[326995248,1715692261464,-627.97,0.00012998,2]
[326995249,1715692261474,-627.97,0.00012998,2]
[326995250,1715692261484,-627.97,0.00012998,2]
[326995251,1715692261493,-500.0,0.00012998,2]
[326995252,1715692261503,-500.0,0.00012998,2]
[326995253,1715692261513,-500.0,0.00012998,2]
[326995254,1715692261522,-500.0,0.00012998,2]
[326995255,1715692261532,-1065.19,0.00012998,2]
[326995256,1715692261542,-1065.19,0.00012998,2]
[326995257,1715692261551,-1065.19,0.00012998,2]
[326995258,1715692261560,-946.11,0.00012998,2]
[326995259,1715692261570,-946.11,0.00012998,2]
[326995260,1715692261580,-946.11,0.00012998,2]
[326995261,1715692261590,-946.11,0.00012998,2]
[326995262,1715692261600,-946.11,0.00012998,2]
[326995263,1715692261610,-946.11,0.00012998,2]
[326995264,1715692261619,-946.32,0.00012998,2]
[326995265,1715692261630,-278.43,0.00012998,2]